bitfinex/quotes_SOLUSD_20240813
["timestamp","ask_amount","ask_price","bid_price","bid_amount"]
[1723537043216,6.8339,146.33,146.31,0.50196]
[1723537044631,6.8343,146.32,146.31,0.50196]
[1723537046441,19.4139,146.33,146.31,0.50196]
[1723537046940,12.58,146.35,146.31,0.50196]
[1723537047247,19.4129,146.35,146.31,7.33636]
[1723537047431,19.4129,146.35,146.32,45.0]
[1723537047623,19.4129,146.35,146.33,0.37647]
[1723537047824,6.8325,146.36,146.33,0.37647]
[1723537048029,12.58,146.37,146.33,0.37647]
[1723537048030,6.833,146.35,146.33,0.37647]
[1723537048442,6.8334,146.34,146.33,0.37647]
[1723537048825,19.4131,146.35,146.33,0.37647]
[1723537049336,6.8338,146.33,146.31,0.12549]
[1723537049644,6.8338,146.33,146.3,0.25098]
[1723537049844,6.8338,146.33,146.32,0.12549]
[1723537050842,6.8343,146.32,146.31,0.25098]
[1723537051018,6.8343,146.32,146.31,0.12549]
[1723537051223,6.8339,146.33,146.31,0.25098]
[1723537051422,6.8339,146.33,146.32,0.12549]
[1723537051725,6.8334,146.34,146.32,0.12549]
[1723537051933,19.4134,146.34,146.32,0.12549]
[1723537052149,19.4134,146.34,146.31,0.25098]
[1723537052325,19.4134,146.34,146.32,0.12549]
[1723537052529,19.4134,146.34,146.32,0.37647]
[1723537052736,19.4134,146.34,146.33,0.12549]
[1723537055929,12.58,146.36,146.33,0.12549]
[1723537057047,6.8329,146.35,146.33,0.12549]
[1723537057224,12.58,146.36,146.33,0.12549]
[1723537057421,15.3594,146.39,146.34,0.12549]
[1723537057634,15.3594,146.39,146.34,0.37647]
[1723537057843,15.3594,146.39,146.35,0.12549]
[1723537058041,15.3594,146.39,146.35,0.37647]
[1723537058429,6.8328,146.36,146.35,0.37647]
[1723537062364,6.832,146.37,146.35,0.50196]
[1723537062667,6.832,146.37,146.36,0.12549]
[1723537063069,6.8324,146.36,146.35,0.25098]
[1723537063259,6.8324,146.36,146.35,0.37647]
[1723537063462,6.8324,146.36,146.35,0.50196]
[1723537066768,6.8321,146.37,146.35,0.50196]
[1723537067066,6.8321,146.37,146.36,0.12549]
[1723537067255,6.8321,146.37,146.36,0.25098]
[1723537067564,6.8321,146.37,146.36,0.50196]
[1723537067871,6.8321,146.37,146.36,0.25098]
[1723537068262,6.8328,146.36,146.35,0.12549]
[1723537068472,6.8328,146.36,146.35,0.37647]
[1723537070066,17.0771,146.4,146.36,0.12549]
[1723537070279,33.643,146.43,146.36,0.12549]
[1723537070438,6.8311,146.39,146.36,0.12549]
[1723537070643,6.8311,146.39,146.36,45.12549]
[1723537070883,6.8307,146.4,146.37,0.37647]
[1723537071745,6.8302,146.41,146.38,0.12549]
[1723537072651,17.0698,146.46,146.38,8.32285831]
[1723537072652,6.8292,146.43,146.38,8.32285831]
[1723537072875,263.2619,146.51,146.38,8.32285831]
[1723537072876,17.0658,146.5,146.42,0.12549]
[1723537073070,12.58,146.47,146.42,45.50196]
[1723537073367,6.8282,146.45,146.42,45.50196]
[1723537073566,19.4077,146.47,146.42,45.50196]
[1723537073744,19.4077,146.47,146.43,1.36564845]
[1723537073941,6.8278,146.46,146.44,0.37647]
[1723537075584,12.58,146.47,146.44,0.37647]
[1723537075758,19.4082,146.45,146.44,0.37647]
[1723537075956,19.4082,146.45,146.44,0.25098]
[1723537076280,19.4082,146.45,146.44,0.12549]
[1723537076498,6.8287,146.44,146.43,0.37647]
[1723537076649,6.8287,146.44,146.43,0.50196]
[1723537076856,19.4082,146.45,146.43,0.50196]
[1723537077079,6.8278,146.46,146.44,0.12549]
[1723537077580,12.58,146.47,146.44,0.12549]
[1723537078674,6.8272,146.48,146.44,1.49099473]
[1723537078973,6.8272,146.48,146.46,0.12549]
[1723537079175,6.8264,146.49,146.46,1.49089893]
[1723537079376,6.8264,146.49,146.47,0.37647]
[1723537079764,19.4057,146.51,146.47,0.37647]
[1723537079963,6.8259,146.5,146.47,6.83477]
[1723537080190,6.8259,146.5,146.49,0.12549]
[1723537080414,6.8259,146.5,146.49,0.50196]
[1723537080773,6.8259,146.5,146.49,0.25098]
[1723537081252,6.8259,146.5,146.49,0.50196]
[1723537081450,6.8259,146.5,146.49,0.37647]
[1723537081656,6.8259,146.5,146.49,0.25098]
[1723537082076,6.8259,146.5,146.49,0.37647]
[1723537082375,6.8259,146.5,146.49,0.25098]
[1723537084184,6.8259,146.5,146.49,0.37647]
[1723537084483,6.8259,146.5,146.49,0.25098]
[1723537085269,6.8255,146.51,146.49,0.50196]
[1723537085477,31.37,146.52,146.5,0.12549]
[1723537085679,31.37,146.52,146.5,0.50196]
[1723537086174,6.8254,146.51,146.5,0.37647]
[1723537086395,6.8254,146.51,146.5,0.25098]
[1723537086576,6.8254,146.51,146.48,45.0]
[1723537086577,6.8254,146.51,146.49,0.37647]
[1723537086783,6.8254,146.51,146.5,0.12549]
[1723537087187,31.37,146.52,146.48,45.12549]
[1723537087385,18.18109319,146.56,146.48,45.0]
[1723537087582,20.0,146.55,146.48,45.12549]
[1723537087797,20.0,146.55,146.49,0.25098]
[1723537088004,20.0,146.55,146.48,45.0]
[1723537088502,6.826,146.5,146.48,45.0]
[1723537089592,6.8264,146.49,146.48,45.0]
[1723537089791,6.8264,146.49,146.48,45.25098]
[1723537092899,6.826,146.5,146.48,45.25098]
[1723537093996,6.8264,146.49,146.48,45.25098]
[1723537094895,6.8264,146.49,146.48,45.0]
[1723537095094,17.0645,146.51,146.44,6.464]
[1723537095299,31.37,146.47,146.44,6.464]
[1723537095476,6.8278,146.46,146.44,6.464]
[1723537095675,38.1974,146.47,146.44,6.464]
[1723537095986,6.8269,146.48,146.44,6.464]
[1723537096491,6.8273,146.47,146.44,6.464]
[1723537096692,6.8273,146.47,146.45,0.25098]
[1723537096881,6.8273,146.47,146.46,0.12549]
[1723537097298,17.0606,146.54,146.46,0.25098]
[1723537097504,6.8268,146.48,146.47,0.37647]
[1723537098387,6.8268,146.48,146.47,0.25098]
[1723537098791,6.8268,146.48,146.46,0.37647]
[1723537099297,6.8265,146.49,146.47,0.12549]
[1723537100694,6.8268,146.48,146.47,0.12549]
[1723537102487,31.37,146.5,146.47,0.12549]
[1723537102695,6.8264,146.49,146.47,0.12549]
[1723537102929,6.8259,146.5,146.47,0.12549]
[1723537103206,6.8264,146.49,146.47,0.12549]
[1723537105404,6.825,146.52,146.49,0.12549]
[1723537105589,12.55,146.52,146.49,45.50196]
[1723537106215,17.0598,146.55,146.49,45.50196]
[1723537106426,12.55,146.53,146.49,45.50196]
[1723537106906,6.8254,146.51,146.49,45.50196]
[1723537108106,6.8259,146.5,146.49,45.50196]
[1723537110027,12.55,146.51,146.49,45.50196]
[1723537110603,6.8259,146.5,146.49,45.37647]
[1723537110826,6.8259,146.5,146.49,0.37647]
[1723537112322,6.8259,146.5,146.49,45.37647]
[1723537112695,19.3755,146.51,146.49,45.37647]
[1723537114616,19.3755,146.51,146.49,46.74157841]
[1723537115320,6.8255,146.51,146.5,0.12549]
[1723537115526,6.8255,146.51,146.5,0.50196]
[1723537115705,6.825,146.52,146.5,0.50196]
[1723537115907,17.0559,146.58,146.5,1.86691772]
[1723537116219,6.8245,146.53,146.5,0.50196]
[1723537116609,12.55,146.55,146.5,0.50196]
[1723537116610,6.825,146.52,146.5,0.50196]
[1723537120142,6.825,146.52,146.5,0.50196]
[1723537120930,6.8254,146.51,146.5,0.50196]
[1723537122140,12.55,146.52,146.48,6.1261]
[1723537122318,6.8264,146.49,146.48,6.1261]
[1723537123402,6.8264,146.49,146.48,6.37708]
[1723537123607,6.8264,146.49,146.48,51.62806]
[1723537126813,6.8264,146.49,146.44,15.8155]
[1723537126814,6.8278,146.46,146.44,15.8155]
[1723537127127,6.8282,146.45,146.44,15.8155]
[1723537127328,19.3782,146.45,146.44,15.8155]
[1723537127720,6.8287,146.44,146.43,6.1304]
[1723537128827,12.55,146.47,146.43,6.1304]
[1723537129213,6.8273,146.47,146.43,12.9594]
[1723537129803,6.8273,146.47,146.43,6.1304]
[1723537130328,6.8278,146.46,146.44,45.50196]
[1723537130823,6.8282,146.45,146.44,45.50196]
[1723537131215,19.3782,146.45,146.44,0.50196]
[1723537132522,19.3782,146.45,146.44,45.50196]
[1723537133030,19.3782,146.45,146.44,45.37647]
[1723537133336,19.3782,146.45,146.44,45.25098]
[1723537134320,12.55,146.51,146.45,0.12549]
[1723537134525,12.55,146.51,146.45,0.25098]
[1723537134719,6.8273,146.47,146.46,0.12549]
[1723537135013,17.0649,146.5,146.44,45.12549]
[1723537135835,6.8282,146.45,146.44,45.12549]
[1723537136018,6.8282,146.45,146.44,45.25098]
[1723537139424,6.8279,146.46,146.44,45.25098]
[1723537140122,6.8282,146.45,146.44,45.25098]
[1723537140322,17.0679,146.48,146.42,0.12549]
[1723537140536,21.8842,146.49,146.38,6.5663]
[1723537140749,6.8321,146.37,146.35,6.5663]
[1723537141238,12.55,146.36,146.33,15.4823]
[1723537141443,12.55,146.36,146.31,6.3085]
[1723537141686,6.8334,146.34,146.31,6.3085]
[1723537141823,12.55,146.36,146.3,16.1005]
[1723537142092,6.8353,146.3,146.28,6.1259]
[1723537142238,44.8518,146.36,146.28,6.1259]
[1723537142627,6.8344,146.32,146.28,6.1259]
[1723537143827,6.8344,146.32,146.29,45.50196]
[1723537144033,6.8338,146.34,146.29,45.50196]
[1723537144524,6.8338,146.34,146.29,52.33726]
[1723537145229,6.8338,146.33,146.29,45.50196]
[1723537147954,6.8352,146.3,146.29,45.50196]
[1723537148147,6.8357,146.29,146.28,6.1259]
[1723537148442,6.8357,146.29,146.25,17.9284021]
[1723537148649,6.8353,146.3,146.25,17.9284021]
[1723537149130,6.8357,146.29,146.25,17.9284021]
[1723537150044,6.8357,146.29,146.25,0.8348021]
[1723537150248,6.8363,146.28,146.25,0.8348021]
[1723537151238,6.8368,146.27,146.25,0.8348021]
[1723537151447,31.45,146.29,146.25,0.8348021]
[1723537151628,6.8371,146.26,146.25,0.8348021]
[1723537152646,6.8365,146.28,146.25,0.8348021]
[1723537153244,6.8366,146.27,146.26,0.37647]
[1723537153435,6.8366,146.27,146.26,0.50196]
[1723537153838,6.8366,146.27,146.26,0.12549]
[1723537154548,6.8371,146.26,146.25,0.8348021]
[1723537155241,6.837,146.27,146.25,0.8348021]
[1723537155440,6.8371,146.26,146.25,0.8348021]
[1723537156636,6.8371,146.26,146.16,7.14603638]
[1723537156637,17.0937,146.26,146.16,7.14603638]
[1723537156790,17.0937,146.26,146.15,23.1305]
[1723537156791,38.289,146.22,146.17,6.8411]
[1723537157355,6.8394,146.21,146.17,6.8411]
[1723537157759,22.5041,146.28,146.15,23.1305]
[1723537157760,6.8405,146.19,146.15,23.1305]
[1723537157951,17.0959,146.24,146.15,23.1305]
[1723537157952,6.84,146.2,146.15,23.1305]
[1723537158465,6.8404,146.19,146.15,23.1305]
[1723537159542,6.8408,146.19,146.15,6.0252]
[1723537159747,6.8408,146.19,146.16,45.37647]
[1723537159956,6.8394,146.22,146.16,52.21817]
[1723537160158,6.8394,146.22,146.16,45.37647]
[1723537160343,17.0949,146.25,146.16,45.37647]
[1723537160543,6.839,146.22,146.16,52.21807]
[1723537160769,6.839,146.22,146.17,7.09208]
[1723537160965,33.733,146.28,146.19,0.12549]
[1723537161265,33.733,146.28,146.19,0.25098]
[1723537161477,6.8377,146.25,146.21,0.12549]
[1723537161765,33.733,146.28,146.21,0.12549]
[1723537161766,33.733,146.28,146.21,0.25098]
[1723537161968,6.8388,146.23,146.22,0.12549]
[1723537162361,6.8388,146.23,146.22,0.25098]
[1723537162668,6.838,146.25,146.23,0.12549]
[1723537162868,6.838,146.25,146.23,0.37647]
[1723537163266,6.838,146.25,146.24,0.12549]
[1723537164961,6.8372,146.26,146.24,0.12549]
[1723537165169,6.8372,146.26,146.24,0.37647]
[1723537165872,6.8372,146.26,146.25,0.12549]
[1723537166050,6.8372,146.26,146.25,0.25098]
[1723537167952,6.8372,146.26,146.25,0.12549]
[1723537168163,6.8376,146.25,146.24,45.0]
[1723537168570,17.0911,146.28,146.2,15.379]
[1723537168769,17.0911,146.28,146.21,45.25098]
[1723537169152,6.8393,146.22,146.21,45.25098]
[1723537169853,6.8393,146.22,146.21,45.50196]
[1723537170053,6.8394,146.21,146.2,15.379]
[1723537170463,6.8394,146.21,146.19,6.0601]
[1723537170973,6.8399,146.2,146.16,16.2726]
[1723537172168,6.8399,146.2,146.17,0.25098]
[1723537172374,6.8399,146.2,146.18,0.12549]
[1723537172672,17.0936,146.26,146.18,0.25098]
[1723537172870,6.8389,146.23,146.19,0.37647]
[1723537173056,6.8389,146.23,146.2,0.12549]
[1723537173260,6.8389,146.23,146.21,0.12549]
[1723537173583,6.8389,146.23,146.21,0.25098]
[1723537173776,6.8389,146.23,146.22,0.12549]
[1723537174072,6.8389,146.23,146.22,0.50196]
[1723537174302,6.8389,146.23,146.22,0.25098]
[1723537174530,6.8389,146.23,146.22,0.12549]
[1723537174696,6.8389,146.23,146.22,0.25098]
[1723537174874,6.8389,146.23,146.22,0.50196]
[1723537175984,6.8389,146.23,146.22,0.37647]
[1723537176168,6.8389,146.23,146.22,0.12549]
[1723537176366,17.0936,146.26,146.2,0.12549]
[1723537176558,6.8404,146.19,146.16,16.2726]
[1723537176762,6.84,146.2,146.16,16.2726]
[1723537177288,6.8395,146.21,146.16,16.2726]
[1723537177667,17.0959,146.24,146.16,16.2726]
[1723537177668,6.8391,146.22,146.16,23.1143]
[1723537177868,6.8391,146.22,146.17,0.37647]
[1723537178199,5.8619,146.33,146.2,0.12549]
[1723537178371,6.8371,146.26,146.2,53.70924594]
[1723537178568,17.0921,146.27,146.2,45.50196]
[1723537178769,6.8391,146.22,146.2,45.50196]
[1723537180679,6.8386,146.23,146.2,45.50196]
[1723537181002,6.8381,146.24,146.2,45.50196]
[1723537181590,17.0921,146.27,146.2,45.50196]
[1723537181591,6.8393,146.22,146.2,45.50196]
[1723537182910,6.8394,146.21,146.2,45.50196]
[1723537183204,17.0921,146.27,146.2,45.50196]
[1723537183574,6.8391,146.22,146.2,45.37647]
[1723537184070,6.8385,146.23,146.21,0.12549]
[1723537184291,6.8385,146.23,146.21,0.50196]
[1723537185193,6.839,146.22,146.21,0.50196]
[1723537185645,6.8394,146.21,146.16,22.7072]
[1723537185802,17.0956,146.24,146.16,22.7072]
[1723537185803,6.8405,146.19,146.16,22.7072]
[1723537185999,48.5456,146.24,146.16,22.7072]
[1723537186000,6.8409,146.18,146.16,22.7072]
[1723537186215,6.8413,146.17,146.16,6.4346]
[1723537186522,6.8418,146.16,146.13,15.8401]
[1723537187073,17.1009,146.2,146.12,6.5065]
[1723537188177,6.8428,146.14,146.12,6.5065]
[1723537188593,6.8432,146.13,146.12,6.5065]
[1723537188792,6.8432,146.13,146.11,0.8348021]
[1723537189104,6.8428,146.14,146.11,0.8348021]
[1723537189514,6.8432,146.13,146.11,0.8348021]
[1723537190076,6.8428,146.14,146.11,0.8348021]
[1723537190700,6.8428,146.14,146.12,0.25098]
[1723537190926,6.8428,146.14,146.13,0.12549]
[1723537192188,6.8432,146.13,146.12,0.25098]
[1723537193949,6.8428,146.14,146.12,0.50196]
[1723537194228,6.8424,146.15,146.13,0.37647]
[1723537194426,6.8424,146.15,146.14,0.12549]
[1723537197629,6.8427,146.14,146.13,0.37647]
[1723537197817,6.8427,146.14,146.13,0.50196]
[1723537200707,6.8436,146.13,146.11,0.8348021]
[1723537200914,6.8436,146.13,146.12,0.25098]
[1723537201122,6.8436,146.13,146.12,0.50196]
[1723537201337,6.8426,146.15,146.12,0.50196]
[1723537201518,6.8426,146.15,146.13,0.25098]
[1723537201845,6.8414,146.17,146.14,0.25098]
[1723537202141,6.8414,146.17,146.16,0.12549]
[1723537202643,6.8414,146.17,146.16,0.25098]
[1723537202826,6.8414,146.17,146.16,0.50196]
[1723537203031,6.8409,146.18,146.16,0.50196]
[1723537203330,6.8409,146.18,146.17,0.37647]
[1723537203538,6.8409,146.18,146.17,0.50196]
[1723537204448,6.8409,146.18,146.17,0.25098]
[1723537204650,6.8409,146.18,146.17,0.12549]
[1723537204818,6.8425,146.15,146.12,0.12549]
[1723537205014,6.8425,146.15,146.12,1.74491208]
[1723537205222,6.8433,146.13,146.11,7.2828021]
[1723537205421,17.1023,146.18,146.11,7.2828021]
[1723537206148,6.8435,146.13,146.11,7.2828021]
[1723537206360,6.8436,146.12,146.11,0.8348021]
[1723537207376,6.8469,146.05,146.04,6.3423]
[1723537207534,31.45,146.08,146.0,22.5697]
[1723537207756,21.4882,146.14,146.0,22.5697]
[1723537207921,20.0,146.13,146.0,22.5697]
[1723537208153,6.848,146.03,146.0,22.5697]
[1723537208547,6.8479,146.03,146.0,22.5697]
[1723537208959,6.8474,146.04,146.0,22.5697]
[1723537209348,6.8484,146.02,146.0,22.5697]
[1723537209536,17.115,146.08,146.0,22.5697]
[1723537210341,6.848,146.03,146.0,22.5697]
[1723537211146,6.8474,146.04,146.0,22.5697]
[1723537211577,17.115,146.08,146.0,22.5697]
[1723537211578,6.8481,146.03,146.0,22.5697]
[1723537211846,6.8481,146.03,146.01,45.50196]
[1723537212049,17.1105,146.11,146.01,45.50196]
[1723537212250,6.8474,146.05,146.01,45.50196]
[1723537212457,6.8465,146.06,146.01,45.50196]
[1723537213271,6.8462,146.07,146.01,45.50196]
[1723537213647,17.1105,146.11,146.01,45.50196]
[1723537213980,6.8465,146.06,146.03,0.12549]
[1723537214270,6.8465,146.06,146.03,0.50196]
[1723537214447,6.8465,146.06,146.04,0.12549]
[1723537214648,6.8469,146.05,146.04,0.25098]
[1723537215251,17.1138,146.09,146.0,22.5697]
[1723537215783,6.849,146.01,145.96,7.0521021]
[1723537215949,6.8493,146.0,145.96,7.0521021]
[1723537216156,6.85,145.99,145.96,7.0521021]
[1723537216478,17.1167,146.06,145.96,0.8348021]
[1723537216479,6.8507,145.97,145.96,0.8348021]
[1723537219186,31.45,146.0,145.96,0.8348021]
[1723537219407,6.8507,145.97,145.96,0.8348021]
[1723537220069,6.8503,145.98,145.96,0.8348021]
[1723537220278,6.8503,145.98,145.96,0.9602921]
[1723537220782,6.8507,145.97,145.96,0.8348021]
[1723537221871,6.8507,145.97,145.96,0.8348021]
[1723537226168,6.8507,145.97,145.96,2.1e-06]
[1723537227400,26.8507,145.97,145.96,2.1e-06]
[1723537227562,6.8548,145.89,145.87,6.001]
[1723537227768,6.8549,145.88,145.87,6.001]
[1723537228507,6.8555,145.87,145.83,6.4895]
[1723537228799,6.855,145.88,145.83,6.4895]
[1723537229797,6.8544,145.89,145.83,13.3465]
[1723537229996,6.854,145.9,145.83,6.4895]
[1723537230207,17.1314,145.94,145.83,6.4895]
[1723537230503,6.8547,145.89,145.83,13.3464]
[1723537230733,6.855,145.88,145.83,6.4895]
[1723537231034,6.8545,145.89,145.85,0.12549]
[1723537231501,6.8549,145.88,145.85,0.12549]
[1723537231841,17.1314,145.94,145.84,0.12549]
[1723537232045,20.0,145.93,145.84,0.12549]
[1723537232244,6.854,145.9,145.84,6.98179]
[1723537232541,20.0,145.93,145.84,0.12549]
[1723537232741,20.0,145.93,145.84,45.12549]
[1723537232929,20.0,145.93,145.84,45.25098]
[1723537233132,20.0,145.93,145.85,0.12549]
[1723537233438,20.0,145.93,145.85,0.25098]
[1723537233608,6.854,145.9,145.86,0.12549]
[1723537233811,20.0,145.93,145.87,0.12549]
[1723537234042,6.8522,145.94,145.89,0.12549]
[1723537234219,6.8522,145.94,145.89,0.37647]
[1723537234436,17.1271,145.97,145.88,15.1309]
[1723537234633,6.8535,145.91,145.88,15.1309]
[1723537234849,17.1271,145.97,145.88,15.1309]
[1723537234850,6.8526,145.93,145.89,45.0]
[1723537235053,6.8521,145.94,145.9,0.12549]
[1723537235243,6.8526,145.93,145.9,0.12549]
[1723537235442,6.853,145.92,145.89,45.12549]
[1723537235953,6.8524,145.94,145.9,6.5184]
[1723537236155,6.8524,145.94,145.91,45.0]
[1723537236560,41.39878489,145.99,145.91,45.0]
[1723537236726,20.0,145.98,145.91,45.0]
[1723537236955,6.8517,145.95,145.91,45.0]
[1723537237155,7.14898489,145.99,145.92,0.12549]
[1723537237156,6.8512,145.96,145.92,0.12549]
[1723537237468,6.8506,145.98,145.93,0.12549]
[1723537237771,6.8498,145.99,145.93,7.10348]
[1723537237977,6.8498,145.99,145.94,45.25098]
[1723537238191,6.8503,145.98,145.94,45.25098]
[1723537238584,6.8503,145.98,145.94,0.25098]
[1723537239185,6.8498,145.99,145.95,0.25098]
[1723537239388,6.8498,145.99,145.95,16.29968]
[1723537239688,5.8619,146.06,145.97,0.12549]
[1723537239689,17.1163,146.06,145.97,0.12549]
[1723537239893,17.1163,146.06,145.97,6.58977]
[1723537240270,17.1163,146.06,145.98,45.0]
[1723537240588,6.8501,145.99,145.97,6.2133]
[1723537241169,17.1195,146.04,145.98,0.12549]
[1723537241374,6.8497,145.99,145.98,45.25098]
[1723537243499,6.8502,145.98,145.97,6.2133]
[1723537243798,6.8498,145.99,145.97,51.2133]
[1723537244000,17.1195,146.04,145.98,45.0]
[1723537244292,20.0,146.03,145.98,45.0]
[1723537244595,6.8497,145.99,145.98,45.0]
[1723537244777,20.0,146.03,145.98,45.0]
[1723537244958,6.8486,146.02,145.99,0.37647]
[1723537245591,6.8488,146.01,145.99,0.37647]
[1723537245786,6.8479,146.03,145.99,0.37647]
[1723537246066,6.8474,146.04,146.0,0.12549]
[1723537246587,6.8474,146.04,146.01,0.12549]
[1723537246770,6.8474,146.04,146.01,0.37647]
[1723537246976,17.1154,146.07,146.01,0.37647]
[1723537247292,17.1154,146.07,146.02,0.12549]
[1723537247493,17.1154,146.07,146.02,0.37647]
[1723537247494,6.8475,146.04,146.02,0.37647]
[1723537247805,6.8479,146.03,146.02,0.25098]
[1723537248692,6.8479,146.03,146.0,45.0]
[1723537248997,17.1154,146.07,146.01,0.25098]
[1723537249165,6.8474,146.04,146.02,0.12549]
[1723537250303,6.8474,146.04,146.01,0.50196]
[1723537250805,6.8479,146.03,146.01,0.50196]
[1723537251117,20.0,146.06,146.01,0.25098]
[1723537251630,20.0,146.06,146.01,0.37647]
[1723537251919,6.8479,146.03,146.01,0.37647]
[1723537252685,6.8475,146.04,146.01,0.37647]
[1723537253300,6.8479,146.03,146.01,0.37647]
[1723537255582,6.8474,146.05,146.02,0.12549]
[1723537255788,2.77926887,146.09,146.02,0.12549]
[1723537255789,6.8475,146.04,146.02,0.25098]
[1723537256098,6.8475,146.04,146.03,0.25098]
[1723537257132,311.6134,146.15,146.04,6.58789]
[1723537257133,15.0579,146.14,146.04,6.58789]
[1723537257332,17.1099,146.12,146.05,45.37647]
[1723537258351,20.0,146.11,146.05,45.37647]
[1723537258648,20.0,146.11,146.06,0.12549]
[1723537259026,6.845,146.09,146.06,0.12549]
[1723537259614,6.8455,146.08,146.06,0.12549]
[1723537260319,20.0,146.11,146.05,0.25098]
[1723537260746,6.8465,146.06,146.05,0.12549]
[1723537261448,6.8469,146.05,146.04,6.4624]
[1723537262019,17.1127,146.1,146.04,6.4624]
[1723537262224,6.8461,146.07,146.04,6.4624]
[1723537262547,6.8469,146.05,146.04,6.4624]
[1723537262857,6.8469,146.06,146.04,51.71338]
[1723537263148,20.0,146.09,146.05,45.0]
[1723537263321,17.1101,146.12,146.05,45.12549]
[1723537263647,6.8465,146.06,146.05,45.12549]
[1723537263825,6.8459,146.08,146.05,45.25098]
[1723537264013,20.0,146.11,146.05,45.25098]
[1723537264210,17.1122,146.1,146.04,6.4624]
[1723537264441,6.8469,146.05,146.04,6.4624]
[1723537264643,6.8469,146.05,146.04,6.58789]
[1723537264833,6.8469,146.05,146.04,6.4624]
[1723537265040,6.8469,146.05,146.04,6.58789]
[1723537265217,6.8466,146.06,146.04,6.71338]
[1723537265417,6.8466,146.06,146.05,0.12549]
[1723537265632,17.1122,146.1,146.05,0.12549]
[1723537265633,6.8462,146.07,146.05,0.25098]
[1723537265841,17.1122,146.1,146.05,0.25098]
[1723537265842,6.8455,146.08,146.05,0.25098]
[1723537266045,26.8442,146.11,146.06,6.97189]
[1723537266347,6.8442,146.11,146.07,45.37647]
[1723537266712,6.8442,146.11,146.08,0.12549]
[1723537266919,17.1083,146.13,146.08,0.12549]
[1723537267115,17.1083,146.13,146.07,0.25098]
[1723537267116,6.8455,146.08,146.07,0.25098]
[1723537267319,6.8455,146.08,146.07,0.12549]
[1723537267639,17.1083,146.13,146.07,0.25098]
[1723537267842,6.8451,146.09,146.07,0.25098]
[1723537268021,17.1083,146.13,146.07,0.25098]
[1723537268652,17.1083,146.13,146.08,0.37647]
[1723537268854,19.8959406,146.16,146.09,0.12549]
[1723537269154,6.8454,146.09,146.06,45.0]
[1723537269324,6.8454,146.09,146.07,0.12549]
[1723537269526,6.8446,146.1,146.06,0.12549]
[1723537270028,6.8451,146.09,146.06,0.12549]
[1723537270223,6.8447,146.1,146.06,0.12549]
[1723537270434,6.8447,146.1,146.06,0.37647]
[1723537270827,6.8447,146.1,146.07,0.12549]
[1723537271338,6.8451,146.09,146.06,0.37647]
[1723537271733,6.8447,146.1,146.06,0.37647]
[1723537272133,6.8447,146.1,146.07,0.12549]
[1723537272564,17.1075,146.14,146.07,0.12549]
[1723537272850,6.8446,146.1,146.07,0.12549]
[1723537273268,6.8455,146.08,146.06,0.37647]
[1723537273553,17.1075,146.14,146.04,6.4624]
[1723537273554,6.8466,146.06,146.04,6.4624]
[1723537274321,17.1122,146.1,146.04,6.4624]
[1723537274722,6.8469,146.05,146.04,6.4624]
[1723537274918,17.1122,146.1,146.04,6.4624]
[1723537274919,17.1122,146.1,146.04,6.58789]
[1723537275846,6.8466,146.06,146.04,6.58789]
[1723537276049,6.8469,146.05,146.04,6.4624]